{"text_format":"1","workbook":"xlsx","n_sheets":1,"sheets":["Sheet1"],"not_rendered":{"charts":0,"images":0,"macros":1,"external_links":0,"defined_names":1,"comments":0,"pivot_tables":0},"unopened":[],"bounds":{"document_bytes":16777216,"sheet_cells":100000,"rows_first":2000,"rows_last":500,"rows_between":2000,"halvings":0,"cell_chars":16384,"cell_head_chars":4096},"cells_cut":0,"cells_raw":0,"read":"whole","date_system":"1900"}

{"sheet":"Sheet1","index":0,"n_rows":249,"n_cols":12,"rows_kept":249,"cut":false,"hidden":false,"merged":[]}
["pic number","MB Choice","RB Choice","At least 1's Choice","Both Choice","Only 1's Choice","Descriptipn","local image","image preview","Click for large version","online "]
[null,{"$f":"COUNTA(B3:B244)","v":33},{"$f":"COUNTA(C3:C244)","v":69},{"$f":"SUM(D3:D244)","v":71},{"$f":"SUM(E3:E244)","v":31},{"$f":"SUM(F3:F244)","v":40}]
[101,null,null,{"$f":"IF(COUNTA(B3:C3)=0, \"\", VALUE(\"1\"))","v":""},{"$f":"IF(AND(COUNTA(B3), COUNTA(C3)),1, \"\")","v":""},{"$f":"IF(COUNTA(B3:C3)=1, 1, \"\")","v":""},null,{"$f":"\"F:\\misc\\rbwebsite\\pics\\wedding_proofs\\SMALL\\IMG_0\" & A3 & \".jpg\"","v":"F:\\misc\\rbwebsite\\pics\\wedding_proofs\\SMALL\\IMG_0101.jpg"},null,"Click for large version",{"$f":"\"http://www.bambauer.com/pics/wedding_proofs/LARGE/IMG_0\" & A3 & \".JPG\"","v":"http://www.bambauer.com/pics/wedding_proofs/LARGE/IMG_0101.JPG"},{"$f":"K3","v":"http://www.bambauer.com/pics/wedding_proofs/LARGE/IMG_0101.JPG"}]
[102,null,null,"",{"$f":"IF(AND(COUNTA(B4), COUNTA(C4)),1, \"\")","v":""},{"$f":"IF(COUNTA(B4:C4)=1, 1, \"\")","v":""},null,{"$f":"\"F:\\misc\\rbwebsite\\pics\\wedding_proofs\\SMALL\\IMG_0\" & A4 & \".jpg\"","v":"F:\\misc\\rbwebsite\\pics\\wedding_proofs\\SMALL\\IMG_0102.jpg"},null,"Click for large version"]
[103,null,null,"","","",null,"F:\\misc\\rbwebsite\\pics\\wedding_proofs\\SMALL\\IMG_0103.jpg",null,"Click for large version"]
[104,null,null,"","","",null,"F:\\misc\\rbwebsite\\pics\\wedding_proofs\\SMALL\\IMG_0104.jpg",null,"Click for large version"]
[105,null,null,"","","",null,"F:\\misc\\rbwebsite\\pics\\wedding_proofs\\SMALL\\IMG_0105.jpg",null,"Click for large version"]
[106,null,null,"","","",null,"F:\\misc\\rbwebsite\\pics\\wedding_proofs\\SMALL\\IMG_0106.jpg",null,"Click for large version"]
[107,null,"x",1,"",1,null,"F:\\misc\\rbwebsite\\pics\\wedding_proofs\\SMALL\\IMG_0107.jpg",null,"Click for large version"]
[108,null,null,"","","",null,"F:\\misc\\rbwebsite\\pics\\wedding_proofs\\SMALL\\IMG_0108.jpg",null,"Click for large version"]
[109,"orig_list_only","x",1,1,"","needs straightened","F:\\misc\\rbwebsite\\pics\\wedding_proofs\\SMALL\\IMG_0109.jpg",null,"Click for large version"]
[110,null,null,"","","",null,"F:\\misc\\rbwebsite\\pics\\wedding_proofs\\SMALL\\IMG_0110.jpg",null,"Click for large version"]
[111,null,null,"",{"$f":"IF(AND(COUNTA(B13), COUNTA(C13)),1, \"\")","v":""},"",null,"F:\\misc\\rbwebsite\\pics\\wedding_proofs\\SMALL\\IMG_0111.jpg",null,"Click for large version"]
[112,"x","x",1,1,"",null,"F:\\misc\\rbwebsite\\pics\\wedding_proofs\\SMALL\\IMG_0112.jpg",null,"Click for large version"]
[113,null,null,"","","",null,"F:\\misc\\rbwebsite\\pics\\wedding_proofs\\SMALL\\IMG_0113.jpg",null,"Click for large version"]
[114,null,null,"","","",null,"F:\\misc\\rbwebsite\\pics\\wedding_proofs\\SMALL\\IMG_0114.jpg",null,"Click for large version"]
[115,null,null,"","",{"$f":"IF(COUNTA(B17:C17)=1, 1, \"\")","v":""},null,"F:\\misc\\rbwebsite\\pics\\wedding_proofs\\SMALL\\IMG_0115.jpg",null,"Click for large version"]
[116,null,"x",1,"",1,null,"F:\\misc\\rbwebsite\\pics\\wedding_proofs\\SMALL\\IMG_0116.jpg",null,"Click for large version"]
[117,null,null,"","","",null,"F:\\misc\\rbwebsite\\pics\\wedding_proofs\\SMALL\\IMG_0117.jpg",null,"Click for large version"]
[118,null,null,"","","",null,"F:\\misc\\rbwebsite\\pics\\wedding_proofs\\SMALL\\IMG_0118.jpg",null,"Click for large version"]
[119,null,null,"","","",null,"F:\\misc\\rbwebsite\\pics\\wedding_proofs\\SMALL\\IMG_0119.jpg",null,"Click for large version"]
[120,null,"x",1,"",1,null,"F:\\misc\\rbwebsite\\pics\\wedding_proofs\\SMALL\\IMG_0120.jpg",null,"Click for large version"]
[121,null,null,"","","",null,"F:\\misc\\rbwebsite\\pics\\wedding_proofs\\SMALL\\IMG_0121.jpg",null,"Click for large version"]
[122,null,"x",1,"",1,null,"F:\\misc\\rbwebsite\\pics\\wedding_proofs\\SMALL\\IMG_0122.jpg",null,"Click for large version"]
[123,null,null,"","","",null,"F:\\misc\\rbwebsite\\pics\\wedding_proofs\\SMALL\\IMG_0123.jpg",null,"Click for large version"]
[124,null,null,"","","",null,"F:\\misc\\rbwebsite\\pics\\wedding_proofs\\SMALL\\IMG_0124.jpg",null,"Click for large version"]
[125,null,null,"","","",null,"F:\\misc\\rbwebsite\\pics\\wedding_proofs\\SMALL\\IMG_0125.jpg",null,"Click for large version"]
[126,null,null,"","","",null,"F:\\misc\\rbwebsite\\pics\\wedding_proofs\\SMALL\\IMG_0126.jpg",null,"Click for large version"]
[127,"x","x",1,1,"","from back of deck, see backs of many people","F:\\misc\\rbwebsite\\pics\\wedding_proofs\\SMALL\\IMG_0127.jpg",null,"Click for large version"]
["127 bible",null,null,"","","",null,"F:\\misc\\rbwebsite\\pics\\wedding_proofs\\SMALL\\IMG_0127 bible.jpg",null,"Click for large version"]
[128,null,null,"","","",null,"F:\\misc\\rbwebsite\\pics\\wedding_proofs\\SMALL\\IMG_0128.jpg",null,"Click for large version"]
[129,null,null,"","","",null,"F:\\misc\\rbwebsite\\pics\\wedding_proofs\\SMALL\\IMG_0129.jpg",null,"Click for large version"]
[130,null,"x",1,"",1,null,"F:\\misc\\rbwebsite\\pics\\wedding_proofs\\SMALL\\IMG_0130.jpg",null,"Click for large version"]
[131,null,null,"","","",null,"F:\\misc\\rbwebsite\\pics\\wedding_proofs\\SMALL\\IMG_0131.jpg",null,"Click for large version"]
[132,null,null,"","","",null,"F:\\misc\\rbwebsite\\pics\\wedding_proofs\\SMALL\\IMG_0132.jpg",null,"Click for large version"]
[133,null,null,"","","",null,"F:\\misc\\rbwebsite\\pics\\wedding_proofs\\SMALL\\IMG_0133.jpg",null,"Click for large version"]
[134,null,null,"","","",null,"F:\\misc\\rbwebsite\\pics\\wedding_proofs\\SMALL\\IMG_0134.jpg",null,"Click for large version"]
[135,null,null,"","","",null,"F:\\misc\\rbwebsite\\pics\\wedding_proofs\\SMALL\\IMG_0135.jpg",null,"Click for large version"]
[136,null,null,"","","",null,"F:\\misc\\rbwebsite\\pics\\wedding_proofs\\SMALL\\IMG_0136.jpg",null,"Click for large version"]
[137,null,null,"","","",null,"F:\\misc\\rbwebsite\\pics\\wedding_proofs\\SMALL\\IMG_0137.jpg",null,"Click for large version"]
[138,null,null,"","","",null,"F:\\misc\\rbwebsite\\pics\\wedding_proofs\\SMALL\\IMG_0138.jpg",null,"Click for large version"]
[139,null,null,"","","",null,"F:\\misc\\rbwebsite\\pics\\wedding_proofs\\SMALL\\IMG_0139.jpg",null,"Click for large version"]
[140,null,null,"","","",null,"F:\\misc\\rbwebsite\\pics\\wedding_proofs\\SMALL\\IMG_0140.jpg",null,"Click for large version"]
[141,null,null,"","","",null,"F:\\misc\\rbwebsite\\pics\\wedding_proofs\\SMALL\\IMG_0141.jpg",null,"Click for large version"]
[142,null,null,"","","",null,"F:\\misc\\rbwebsite\\pics\\wedding_proofs\\SMALL\\IMG_0142.jpg",null,"Click for large version"]
[143,null,null,"","","",null,"F:\\misc\\rbwebsite\\pics\\wedding_proofs\\SMALL\\IMG_0143.jpg",null,"Click for large version"]
[144,null,null,"","","",null,"F:\\misc\\rbwebsite\\pics\\wedding_proofs\\SMALL\\IMG_0144.jpg",null,"Click for large version"]
[145,null,null,"","","",null,"F:\\misc\\rbwebsite\\pics\\wedding_proofs\\SMALL\\IMG_0145.jpg",null,"Click for large version"]
[146,null,null,"","","",null,"F:\\misc\\rbwebsite\\pics\\wedding_proofs\\SMALL\\IMG_0146.jpg",null,"Click for large version"]
[147,null,"or 145",1,"",1,"needs straightened","F:\\misc\\rbwebsite\\pics\\wedding_proofs\\SMALL\\IMG_0147.jpg",null,"Click for large version"]
[148,null,null,"","","",null,"F:\\misc\\rbwebsite\\pics\\wedding_proofs\\SMALL\\IMG_0148.jpg",null,"Click for large version"]
[149,null,null,"","","",null,"F:\\misc\\rbwebsite\\pics\\wedding_proofs\\SMALL\\IMG_0149.jpg",null,"Click for large version"]
[150,null,"maybe",1,"",1,null,"F:\\misc\\rbwebsite\\pics\\wedding_proofs\\SMALL\\IMG_0150.jpg",null,"Click for large version"]
[151,null,null,"","","",null,"F:\\misc\\rbwebsite\\pics\\wedding_proofs\\SMALL\\IMG_0151.jpg",null,"Click for large version"]
[152,null,null,"","","",null,"F:\\misc\\rbwebsite\\pics\\wedding_proofs\\SMALL\\IMG_0152.jpg",null,"Click for large version"]
[153,null,null,"","","",null,"F:\\misc\\rbwebsite\\pics\\wedding_proofs\\SMALL\\IMG_0153.jpg",null,"Click for large version"]
[154,null,null,"","","",null,"F:\\misc\\rbwebsite\\pics\\wedding_proofs\\SMALL\\IMG_0154.jpg",null,"Click for large version"]
[155,null,null,"","","",null,"F:\\misc\\rbwebsite\\pics\\wedding_proofs\\SMALL\\IMG_0155.jpg",null,"Click for large version"]
[156,null,null,"","","",null,"F:\\misc\\rbwebsite\\pics\\wedding_proofs\\SMALL\\IMG_0156.jpg",null,"Click for large version"]
[157,null,null,"","","",null,"F:\\misc\\rbwebsite\\pics\\wedding_proofs\\SMALL\\IMG_0157.jpg",null,"Click for large version"]
[158,null,null,"","","",null,"F:\\misc\\rbwebsite\\pics\\wedding_proofs\\SMALL\\IMG_0158.jpg",null,"Click for large version"]
[159,"x","x",1,1,"","needs straightened","F:\\misc\\rbwebsite\\pics\\wedding_proofs\\SMALL\\IMG_0159.jpg",null,"Click for large version"]
[160,null,null,"","","",null,"F:\\misc\\rbwebsite\\pics\\wedding_proofs\\SMALL\\IMG_0160.jpg",null,"Click for large version"]
[161,null,"x",1,"",1,"needs straightened","F:\\misc\\rbwebsite\\pics\\wedding_proofs\\SMALL\\IMG_0161.jpg",null,"Click for large version"]
[162,null,null,"","","","Bill's eyes are closed","F:\\misc\\rbwebsite\\pics\\wedding_proofs\\SMALL\\IMG_0162.jpg",null,"Click for large version"]
[163,null,null,"","","",null,"F:\\misc\\rbwebsite\\pics\\wedding_proofs\\SMALL\\IMG_0163.jpg",null,"Click for large version"]
[164,null,"x",1,"",1,null,"F:\\misc\\rbwebsite\\pics\\wedding_proofs\\SMALL\\IMG_0164.jpg",null,"Click for large version"]
[165,null,null,{"$f":"IF(COUNTA(B68:C68)=0, \"\", VALUE(\"1\"))","v":""},{"$f":"IF(AND(COUNTA(B68), COUNTA(C68)),1, \"\")","v":""},{"$f":"IF(COUNTA(B68:C68)=1, 1, \"\")","v":""},null,{"$f":"\"F:\\misc\\rbwebsite\\pics\\wedding_proofs\\SMALL\\IMG_0\" & A68 & \".jpg\"","v":"F:\\misc\\rbwebsite\\pics\\wedding_proofs\\SMALL\\IMG_0165.jpg"},null,"Click for large version"]
[166,null,null,"","","",null,"F:\\misc\\rbwebsite\\pics\\wedding_proofs\\SMALL\\IMG_0166.jpg",null,"Click for large version"]
[167,null,null,"","","",null,"F:\\misc\\rbwebsite\\pics\\wedding_proofs\\SMALL\\IMG_0167.jpg",null,"Click for large version"]
[168,null,"x",1,"",1,"needs straightened","F:\\misc\\rbwebsite\\pics\\wedding_proofs\\SMALL\\IMG_0168.jpg",null,"Click for large version"]
[169,null,null,"","","","possible","F:\\misc\\rbwebsite\\pics\\wedding_proofs\\SMALL\\IMG_0169.jpg",null,"Click for large version"]
[170,"x","x",1,1,"","is it possible to blur background","F:\\misc\\rbwebsite\\pics\\wedding_proofs\\SMALL\\IMG_0170.jpg",null,"Click for large version"]
[171,null,null,"","","",null,"F:\\misc\\rbwebsite\\pics\\wedding_proofs\\SMALL\\IMG_0171.jpg",null,"Click for large version"]
[172,null,null,"","","",null,"F:\\misc\\rbwebsite\\pics\\wedding_proofs\\SMALL\\IMG_0172.jpg",null,"Click for large version"]
[173,null,null,"","","",null,"F:\\misc\\rbwebsite\\pics\\wedding_proofs\\SMALL\\IMG_0173.jpg",null,"Click for large version"]
[174,null,null,"","","",null,"F:\\misc\\rbwebsite\\pics\\wedding_proofs\\SMALL\\IMG_0174.jpg",null,"Click for large version"]
[175,null,null,"","","",null,"F:\\misc\\rbwebsite\\pics\\wedding_proofs\\SMALL\\IMG_0175.jpg",null,"Click for large version"]
[176,null,null,"","","","possible","F:\\misc\\rbwebsite\\pics\\wedding_proofs\\SMALL\\IMG_0176.jpg",null,"Click for large version"]
[177,null,null,"","","",null,"F:\\misc\\rbwebsite\\pics\\wedding_proofs\\SMALL\\IMG_0177.jpg",null,"Click for large version"]
[178,null,null,"","","","was on MB orig list and my list I removed for 181","F:\\misc\\rbwebsite\\pics\\wedding_proofs\\SMALL\\IMG_0178.jpg",null,"Click for large version"]
[179,null,null,"","","",null,"F:\\misc\\rbwebsite\\pics\\wedding_proofs\\SMALL\\IMG_0179.jpg",null,"Click for large version"]
[180,null,null,"","","","was on MB list, I removed for 181","F:\\misc\\rbwebsite\\pics\\wedding_proofs\\SMALL\\IMG_0180.jpg",null,"Click for large version"]
[181,"orig_list_only","x",1,1,"",null,"F:\\misc\\rbwebsite\\pics\\wedding_proofs\\SMALL\\IMG_0181.jpg",null,"Click for large version"]
[182,"x",null,1,"",1,"zoom in a little","F:\\misc\\rbwebsite\\pics\\wedding_proofs\\SMALL\\IMG_0182.jpg",null,"Click for large version"]
[183,null,null,"","","","George's eyes are closed","F:\\misc\\rbwebsite\\pics\\wedding_proofs\\SMALL\\IMG_0183.jpg",null,"Click for large version"]
[184,null,"x",1,"",1,"MB had 185 or 186 listed, I think 184 is better than both","F:\\misc\\rbwebsite\\pics\\wedding_proofs\\SMALL\\IMG_0184.jpg",null,"Click for large version"]
[185,null,null,"","","","MB had 185 or 186 listed, I think 184 is better than both","F:\\misc\\rbwebsite\\pics\\wedding_proofs\\SMALL\\IMG_0185.jpg",null,"Click for large version"]
[186,null,null,"","","","MB had 185 or 186 listed, I think 184 is better than both; George has slanted smile","F:\\misc\\rbwebsite\\pics\\wedding_proofs\\SMALL\\IMG_0186.jpg",null,"Click for large version"]
[187,null,null,"","","",null,"F:\\misc\\rbwebsite\\pics\\wedding_proofs\\SMALL\\IMG_0187.jpg",null,"Click for large version"]
[188,"orig_list_only","x",1,1,"","needs straightened","F:\\misc\\rbwebsite\\pics\\wedding_proofs\\SMALL\\IMG_0188.jpg",null,"Click for large version"]
[189,null,null,"","","",null,"F:\\misc\\rbwebsite\\pics\\wedding_proofs\\SMALL\\IMG_0189.jpg",null,"Click for large version"]
[190,null,null,"","","",null,"F:\\misc\\rbwebsite\\pics\\wedding_proofs\\SMALL\\IMG_0190.jpg",null,"Click for large version"]
[191,null,null,"","","",null,"F:\\misc\\rbwebsite\\pics\\wedding_proofs\\SMALL\\IMG_0191.jpg",null,"Click for large version"]
[192,null,null,"","","",null,"F:\\misc\\rbwebsite\\pics\\wedding_proofs\\SMALL\\IMG_0192.jpg",null,"Click for large version"]
[193,null,"maybe",1,"",1,"zoom in a bit","F:\\misc\\rbwebsite\\pics\\wedding_proofs\\SMALL\\IMG_0193.jpg",null,"Click for large version"]
[194,null,null,"","","",null,"F:\\misc\\rbwebsite\\pics\\wedding_proofs\\SMALL\\IMG_0194.jpg",null,"Click for large version"]
[195,null,"maybe",1,"",1,null,"F:\\misc\\rbwebsite\\pics\\wedding_proofs\\SMALL\\IMG_0195.jpg",null,"Click for large version"]
[196,null,null,"","","",null,"F:\\misc\\rbwebsite\\pics\\wedding_proofs\\SMALL\\IMG_0196.jpg",null,"Click for large version"]
[197,null,null,"","","",null,"F:\\misc\\rbwebsite\\pics\\wedding_proofs\\SMALL\\IMG_0197.jpg",null,"Click for large version"]
[198,null,null,"","","",null,"F:\\misc\\rbwebsite\\pics\\wedding_proofs\\SMALL\\IMG_0198.jpg",null,"Click for large version"]
[199,"orig_list_only","x",1,1,"","zoom in","F:\\misc\\rbwebsite\\pics\\wedding_proofs\\SMALL\\IMG_0199.jpg",null,"Click for large version"]
[200,null,null,"","","",null,"F:\\misc\\rbwebsite\\pics\\wedding_proofs\\SMALL\\IMG_0200.jpg",null,"Click for large version"]
[201,"orig_list_only","zoom in to 202 level",1,1,"","zoom in to 202 level","F:\\misc\\rbwebsite\\pics\\wedding_proofs\\SMALL\\IMG_0201.jpg",null,"Click for large version"]
[202,null,null,"","","",null,"F:\\misc\\rbwebsite\\pics\\wedding_proofs\\SMALL\\IMG_0202.jpg",null,"Click for large version"]
[203,"orig_list_only","x",1,1,"","needs straightened","F:\\misc\\rbwebsite\\pics\\wedding_proofs\\SMALL\\IMG_0203.jpg",null,"Click for large version"]
[204,null,null,"","","",null,"F:\\misc\\rbwebsite\\pics\\wedding_proofs\\SMALL\\IMG_0204.jpg",null,"Click for large version"]
[205,null,null,"","","",null,"F:\\misc\\rbwebsite\\pics\\wedding_proofs\\SMALL\\IMG_0205.jpg",null,"Click for large version"]
[206,null,null,"","","",null,"F:\\misc\\rbwebsite\\pics\\wedding_proofs\\SMALL\\IMG_0206.jpg",null,"Click for large version"]
[207,null,null,"","","",null,"F:\\misc\\rbwebsite\\pics\\wedding_proofs\\SMALL\\IMG_0207.jpg",null,"Click for large version"]
[208,"x","x",1,1,"","closeup of 210","F:\\misc\\rbwebsite\\pics\\wedding_proofs\\SMALL\\IMG_0208.jpg",null,"Click for large version"]
[209,null,null,"","","",null,"F:\\misc\\rbwebsite\\pics\\wedding_proofs\\SMALL\\IMG_0209.jpg",null,"Click for large version"]
[210,null,null,"","","","MB had on orig_list only; I removed for zoomed in version = 208","F:\\misc\\rbwebsite\\pics\\wedding_proofs\\SMALL\\IMG_0210.jpg",null,"Click for large version"]
[211,null,null,"","","",null,"F:\\misc\\rbwebsite\\pics\\wedding_proofs\\SMALL\\IMG_0211.jpg",null,"Click for large version"]
[212,"x","x",1,1,"",null,"F:\\misc\\rbwebsite\\pics\\wedding_proofs\\SMALL\\IMG_0212.jpg",null,"Click for large version"]
[213,null,null,"","","",null,"F:\\misc\\rbwebsite\\pics\\wedding_proofs\\SMALL\\IMG_0213.jpg",null,"Click for large version"]
[214,"x","x",1,1,"",null,"F:\\misc\\rbwebsite\\pics\\wedding_proofs\\SMALL\\IMG_0214.jpg",null,"Click for large version"]
[215,null,null,"","","",null,"F:\\misc\\rbwebsite\\pics\\wedding_proofs\\SMALL\\IMG_0215.jpg",null,"Click for large version"]
[216,"orig_list_only","x",1,1,"","zoom in a bit","F:\\misc\\rbwebsite\\pics\\wedding_proofs\\SMALL\\IMG_0216.jpg",null,"Click for large version"]
["216bw",null,null,"","","",null,"F:\\misc\\rbwebsite\\pics\\wedding_proofs\\SMALL\\IMG_0216bw.jpg",null,"Click for large version"]
[217,null,null,"","","",null,"F:\\misc\\rbwebsite\\pics\\wedding_proofs\\SMALL\\IMG_0217.jpg",null,"Click for large version"]
[218,null,"x",1,"",1,null,"F:\\misc\\rbwebsite\\pics\\wedding_proofs\\SMALL\\IMG_0218.jpg",null,"Click for large version"]
[219,null,null,"","","",null,"F:\\misc\\rbwebsite\\pics\\wedding_proofs\\SMALL\\IMG_0219.jpg",null,"Click for large version"]
["219flowers",null,null,"","","",null,"F:\\misc\\rbwebsite\\pics\\wedding_proofs\\SMALL\\IMG_0219flowers.jpg",null,"Click for large version"]
[220,null,null,"","","",null,"F:\\misc\\rbwebsite\\pics\\wedding_proofs\\SMALL\\IMG_0220.jpg",null,"Click for large version"]
[221,null,null,"","","",null,"F:\\misc\\rbwebsite\\pics\\wedding_proofs\\SMALL\\IMG_0221.jpg",null,"Click for large version"]
[222,null,null,"","","",null,"F:\\misc\\rbwebsite\\pics\\wedding_proofs\\SMALL\\IMG_0222.jpg",null,"Click for large version"]
[223,null,null,"","","",null,"F:\\misc\\rbwebsite\\pics\\wedding_proofs\\SMALL\\IMG_0223.jpg",null,"Click for large version"]
[224,null,null,"","","",null,"F:\\misc\\rbwebsite\\pics\\wedding_proofs\\SMALL\\IMG_0224.jpg",null,"Click for large version"]
[225,null,null,"","","",null,"F:\\misc\\rbwebsite\\pics\\wedding_proofs\\SMALL\\IMG_0225.jpg",null,"Click for large version"]
["225bow",null,null,"","","",null,"F:\\misc\\rbwebsite\\pics\\wedding_proofs\\SMALL\\IMG_0225bow.jpg",null,"Click for large version"]
["225sepia",null,null,{"$f":"IF(COUNTA(B132:C132)=0, \"\", VALUE(\"1\"))","v":""},{"$f":"IF(AND(COUNTA(B132), COUNTA(C132)),1, \"\")","v":""},{"$f":"IF(COUNTA(B132:C132)=1, 1, \"\")","v":""},null,{"$f":"\"F:\\misc\\rbwebsite\\pics\\wedding_proofs\\SMALL\\IMG_0\" & A132 & \".jpg\"","v":"F:\\misc\\rbwebsite\\pics\\wedding_proofs\\SMALL\\IMG_0225sepia.jpg"},null,"Click for large version"]
[226,null,null,"","","",null,"F:\\misc\\rbwebsite\\pics\\wedding_proofs\\SMALL\\IMG_0226.jpg",null,"Click for large version"]
[227,null,null,"","","",null,"F:\\misc\\rbwebsite\\pics\\wedding_proofs\\SMALL\\IMG_0227.jpg",null,"Click for large version"]
[228,null,null,"","","",null,"F:\\misc\\rbwebsite\\pics\\wedding_proofs\\SMALL\\IMG_0228.jpg",null,"Click for large version"]
[229,null,"potentially big choice; zoom in to 224 level",1,"",1,"zoom in to 224 level","F:\\misc\\rbwebsite\\pics\\wedding_proofs\\SMALL\\IMG_0229.jpg",null,"Click for large version"]
["229bow",null,null,"","","",null,"F:\\misc\\rbwebsite\\pics\\wedding_proofs\\SMALL\\IMG_0229bow.jpg",null,"Click for large version"]
["229sepia",null,null,"","","",null,"F:\\misc\\rbwebsite\\pics\\wedding_proofs\\SMALL\\IMG_0229sepia.jpg",null,"Click for large version"]
[230,null,null,"","","",null,"F:\\misc\\rbwebsite\\pics\\wedding_proofs\\SMALL\\IMG_0230.jpg",null,"Click for large version"]
[231,"x","x",1,1,"",null,"F:\\misc\\rbwebsite\\pics\\wedding_proofs\\SMALL\\IMG_0231.jpg",null,"Click for large version"]
[232,null,"x",1,"",1,null,"F:\\misc\\rbwebsite\\pics\\wedding_proofs\\SMALL\\IMG_0232.jpg",null,"Click for large version"]
[233,null,null,"","","","was on RB list","F:\\misc\\rbwebsite\\pics\\wedding_proofs\\SMALL\\IMG_0233.jpg",null,"Click for large version"]
[234,null,null,"","","","was on RB list","F:\\misc\\rbwebsite\\pics\\wedding_proofs\\SMALL\\IMG_0234.jpg",null,"Click for large version"]
[235,"x","potentially big choice",1,1,"",null,"F:\\misc\\rbwebsite\\pics\\wedding_proofs\\SMALL\\IMG_0235.jpg",null,"Click for large version"]
[236,"x","x",1,1,"",null,"F:\\misc\\rbwebsite\\pics\\wedding_proofs\\SMALL\\IMG_0236.jpg",null,"Click for large version"]
[237,null,null,"","","",null,"F:\\misc\\rbwebsite\\pics\\wedding_proofs\\SMALL\\IMG_0237.jpg",null,"Click for large version"]
["237 - Cropped",null,"x",1,"",1,"crop a bit more or blur Tina","F:\\misc\\rbwebsite\\pics\\wedding_proofs\\SMALL\\IMG_0237 - Cropped.jpg",null,"Click for large version"]
[238,null,"maybe",1,"",1,null,"F:\\misc\\rbwebsite\\pics\\wedding_proofs\\SMALL\\IMG_0238.jpg",null,"Click for large version"]
[239,null,"maybe",1,"",1,null,"F:\\misc\\rbwebsite\\pics\\wedding_proofs\\SMALL\\IMG_0239.jpg",null,"Click for large version"]
[240,null,null,"","","",null,"F:\\misc\\rbwebsite\\pics\\wedding_proofs\\SMALL\\IMG_0240.jpg",null,"Click for large version"]
[241,null,"x",1,"",1,"get rid of Sharon's hand","F:\\misc\\rbwebsite\\pics\\wedding_proofs\\SMALL\\IMG_0241.jpg",null,"Click for large version"]
[242,null,null,"","","","247 instead","F:\\misc\\rbwebsite\\pics\\wedding_proofs\\SMALL\\IMG_0242.jpg",null,"Click for large version"]
[243,null,null,"","","",null,"F:\\misc\\rbwebsite\\pics\\wedding_proofs\\SMALL\\IMG_0243.jpg",null,"Click for large version"]
[244,null,null,"","","",null,"F:\\misc\\rbwebsite\\pics\\wedding_proofs\\SMALL\\IMG_0244.jpg",null,"Click for large version"]
[245,null,null,"","","",null,"F:\\misc\\rbwebsite\\pics\\wedding_proofs\\SMALL\\IMG_0245.jpg",null,"Click for large version"]
[246,"orig_list_only","x",1,1,"","zoom in to 241 level","F:\\misc\\rbwebsite\\pics\\wedding_proofs\\SMALL\\IMG_0246.jpg",null,"Click for large version"]
[247,null,"x",1,"",1,"instead of 242","F:\\misc\\rbwebsite\\pics\\wedding_proofs\\SMALL\\IMG_0247.jpg",null,"Click for large version"]
[248,null,null,"","","",null,"F:\\misc\\rbwebsite\\pics\\wedding_proofs\\SMALL\\IMG_0248.jpg",null,"Click for large version"]
[249,null,null,"","","",null,"F:\\misc\\rbwebsite\\pics\\wedding_proofs\\SMALL\\IMG_0249.jpg",null,"Click for large version"]
[250,null,"x",1,"",1,null,"F:\\misc\\rbwebsite\\pics\\wedding_proofs\\SMALL\\IMG_0250.jpg",null,"Click for large version"]
[251,null,null,"","","",null,"F:\\misc\\rbwebsite\\pics\\wedding_proofs\\SMALL\\IMG_0251.jpg",null,"Click for large version"]
[252,"orig_list_only","x",1,1,"",null,"F:\\misc\\rbwebsite\\pics\\wedding_proofs\\SMALL\\IMG_0252.jpg",null,"Click for large version"]
[253,"x","x",1,1,"",null,"F:\\misc\\rbwebsite\\pics\\wedding_proofs\\SMALL\\IMG_0253.jpg",null,"Click for large version"]
[254,"x","x",1,1,"",null,"F:\\misc\\rbwebsite\\pics\\wedding_proofs\\SMALL\\IMG_0254.jpg",null,"Click for large version"]
[255,null,null,"","","","254 instead","F:\\misc\\rbwebsite\\pics\\wedding_proofs\\SMALL\\IMG_0255.jpg",null,"Click for large version"]
[256,null,null,"","","",null,"F:\\misc\\rbwebsite\\pics\\wedding_proofs\\SMALL\\IMG_0256.jpg",null,"Click for large version"]
[257,null,null,"","","",null,"F:\\misc\\rbwebsite\\pics\\wedding_proofs\\SMALL\\IMG_0257.jpg",null,"Click for large version"]
[258,null,"x",1,"",1,null,"F:\\misc\\rbwebsite\\pics\\wedding_proofs\\SMALL\\IMG_0258.jpg",null,"Click for large version"]
[259,null,"x",1,"",1,null,"F:\\misc\\rbwebsite\\pics\\wedding_proofs\\SMALL\\IMG_0259.jpg",null,"Click for large version"]
[260,null,null,"","","",null,"F:\\misc\\rbwebsite\\pics\\wedding_proofs\\SMALL\\IMG_0260.jpg",null,"Click for large version"]
["260bw",null,null,"","","",null,"F:\\misc\\rbwebsite\\pics\\wedding_proofs\\SMALL\\IMG_0260bw.jpg",null,"Click for large version"]
[261,"orig_list_only","x",1,1,"","MB orig_list_only, my list; thought about crop out chris and sharon but both of us have a little goofy looks","F:\\misc\\rbwebsite\\pics\\wedding_proofs\\SMALL\\IMG_0261.jpg",null,"Click for large version"]
[262,null,null,"","","",null,"F:\\misc\\rbwebsite\\pics\\wedding_proofs\\SMALL\\IMG_0262.jpg",null,"Click for large version"]
[263,null,null,"","","",null,"F:\\misc\\rbwebsite\\pics\\wedding_proofs\\SMALL\\IMG_0263.jpg",null,"Click for large version"]
[264,null,null,"","","",null,"F:\\misc\\rbwebsite\\pics\\wedding_proofs\\SMALL\\IMG_0264.jpg",null,"Click for large version"]
[265,null,null,"","","",null,"F:\\misc\\rbwebsite\\pics\\wedding_proofs\\SMALL\\IMG_0265.jpg",null,"Click for large version"]
[266,null,null,"","","",null,"F:\\misc\\rbwebsite\\pics\\wedding_proofs\\SMALL\\IMG_0266.jpg",null,"Click for large version"]
[267,null,null,"","","",null,"F:\\misc\\rbwebsite\\pics\\wedding_proofs\\SMALL\\IMG_0267.jpg",null,"Click for large version"]
[268,null,"x",1,"",1,"needs cropped","F:\\misc\\rbwebsite\\pics\\wedding_proofs\\SMALL\\IMG_0268.jpg",null,"Click for large version"]
["268bw",null,null,"","","",null,"F:\\misc\\rbwebsite\\pics\\wedding_proofs\\SMALL\\IMG_0268bw.jpg",null,"Click for large version"]
["268sepia",null,null,"","","",null,"F:\\misc\\rbwebsite\\pics\\wedding_proofs\\SMALL\\IMG_0268sepia.jpg",null,"Click for large version"]
[269,null,null,"","","",null,"F:\\misc\\rbwebsite\\pics\\wedding_proofs\\SMALL\\IMG_0269.jpg",null,"Click for large version"]
["269soft","orig_list_only","maybe",1,1,"","looks like our eyes are closed; 270soft is better","F:\\misc\\rbwebsite\\pics\\wedding_proofs\\SMALL\\IMG_0269soft.jpg",null,"Click for large version"]
[270,null,null,"","","","MB had listed; removed for 269soft","F:\\misc\\rbwebsite\\pics\\wedding_proofs\\SMALL\\IMG_0270.jpg",null,"Click for large version"]
["270soft","orig_list_only","x",1,1,"",null,"F:\\misc\\rbwebsite\\pics\\wedding_proofs\\SMALL\\IMG_0270soft.jpg",null,"Click for large version"]
[271,null,null,"","","",null,"F:\\misc\\rbwebsite\\pics\\wedding_proofs\\SMALL\\IMG_0271.jpg",null,"Click for large version"]
[272,"orig_list_only","potentially big choice",1,1,"","zoom in","F:\\misc\\rbwebsite\\pics\\wedding_proofs\\SMALL\\IMG_0272.jpg",null,"Click for large version"]
[273,null,null,"","","","MB had selected, I removed for 272","F:\\misc\\rbwebsite\\pics\\wedding_proofs\\SMALL\\IMG_0273.jpg",null,"Click for large version"]
[274,null,null,"","","",null,"F:\\misc\\rbwebsite\\pics\\wedding_proofs\\SMALL\\IMG_0274.jpg",null,"Click for large version"]
[275,null,null,"","","",null,"F:\\misc\\rbwebsite\\pics\\wedding_proofs\\SMALL\\IMG_0275.jpg",null,"Click for large version"]
[276,null,null,"","","",null,"F:\\misc\\rbwebsite\\pics\\wedding_proofs\\SMALL\\IMG_0276.jpg",null,"Click for large version"]
[277,null,"x",1,"",1,null,"F:\\misc\\rbwebsite\\pics\\wedding_proofs\\SMALL\\IMG_0277.jpg",null,"Click for large version"]
["277bw",null,null,"","","",null,"F:\\misc\\rbwebsite\\pics\\wedding_proofs\\SMALL\\IMG_0277bw.jpg",null,"Click for large version"]
["277sepia",null,null,"","","",null,"F:\\misc\\rbwebsite\\pics\\wedding_proofs\\SMALL\\IMG_0277sepia.jpg",null,"Click for large version"]
[278,null,null,"","","",null,"F:\\misc\\rbwebsite\\pics\\wedding_proofs\\SMALL\\IMG_0278.jpg",null,"Click for large version"]
[279,null,"x",{"$f":"IF(COUNTA(B196:C196)=0, \"\", VALUE(\"1\"))","v":1},{"$f":"IF(AND(COUNTA(B196), COUNTA(C196)),1, \"\")","v":""},{"$f":"IF(COUNTA(B196:C196)=1, 1, \"\")","v":1},"I look grumpy",{"$f":"\"F:\\misc\\rbwebsite\\pics\\wedding_proofs\\SMALL\\IMG_0\" & A196 & \".jpg\"","v":"F:\\misc\\rbwebsite\\pics\\wedding_proofs\\SMALL\\IMG_0279.jpg"},null,"Click for large version"]
[280,null,null,"","","","I have funny smile; 279 is better","F:\\misc\\rbwebsite\\pics\\wedding_proofs\\SMALL\\IMG_0280.jpg",null,"Click for large version"]
[281,null,"x",1,"",1,null,"F:\\misc\\rbwebsite\\pics\\wedding_proofs\\SMALL\\IMG_0281.jpg",null,"Click for large version"]
[282,null,null,"","","","I had selected, then removed","F:\\misc\\rbwebsite\\pics\\wedding_proofs\\SMALL\\IMG_0282.jpg",null,"Click for large version"]
[283,null,null,"","","",null,"F:\\misc\\rbwebsite\\pics\\wedding_proofs\\SMALL\\IMG_0283.jpg",null,"Click for large version"]
[284,null,null,"","","",null,"F:\\misc\\rbwebsite\\pics\\wedding_proofs\\SMALL\\IMG_0284.jpg",null,"Click for large version"]
[285,null,null,"","","",null,"F:\\misc\\rbwebsite\\pics\\wedding_proofs\\SMALL\\IMG_0285.jpg",null,"Click for large version"]
[286,"orig_list_only","potentially big choice",1,1,"",null,"F:\\misc\\rbwebsite\\pics\\wedding_proofs\\SMALL\\IMG_0286.jpg",null,"Click for large version"]
[287,null,null,"","","",null,"F:\\misc\\rbwebsite\\pics\\wedding_proofs\\SMALL\\IMG_0287.jpg",null,"Click for large version"]
[288,null,null,"","","",null,"F:\\misc\\rbwebsite\\pics\\wedding_proofs\\SMALL\\IMG_0288.jpg",null,"Click for large version"]
[289,null,null,"","","",null,"F:\\misc\\rbwebsite\\pics\\wedding_proofs\\SMALL\\IMG_0289.jpg",null,"Click for large version"]
[290,null,null,"","","",null,"F:\\misc\\rbwebsite\\pics\\wedding_proofs\\SMALL\\IMG_0290.jpg",null,"Click for large version"]
[291,"x",null,1,"",1,null,"F:\\misc\\rbwebsite\\pics\\wedding_proofs\\SMALL\\IMG_0291.jpg",null,"Click for large version"]
[292,null,null,"","","","I had selected, then removed","F:\\misc\\rbwebsite\\pics\\wedding_proofs\\SMALL\\IMG_0292.jpg",null,"Click for large version"]
[293,"x","potentially big choice",1,1,"",null,"F:\\misc\\rbwebsite\\pics\\wedding_proofs\\SMALL\\IMG_0293.jpg",null,"Click for large version"]
[294,null,"x",1,"",1,null,"F:\\misc\\rbwebsite\\pics\\wedding_proofs\\SMALL\\IMG_0294.jpg",null,"Click for large version"]
[295,null,null,"","","",null,"F:\\misc\\rbwebsite\\pics\\wedding_proofs\\SMALL\\IMG_0295.jpg",null,"Click for large version"]
[296,null,null,"","","",null,"F:\\misc\\rbwebsite\\pics\\wedding_proofs\\SMALL\\IMG_0296.jpg",null,"Click for large version"]
[297,null,null,"","","",null,"F:\\misc\\rbwebsite\\pics\\wedding_proofs\\SMALL\\IMG_0297.jpg",null,"Click for large version"]
[298,null,null,"","","",null,"F:\\misc\\rbwebsite\\pics\\wedding_proofs\\SMALL\\IMG_0298.jpg",null,"Click for large version"]
[299,null,"x",1,"",1,null,"F:\\misc\\rbwebsite\\pics\\wedding_proofs\\SMALL\\IMG_0299.jpg",null,"Click for large version"]
[300,null,null,"","","","I had selected, then removed","F:\\misc\\rbwebsite\\pics\\wedding_proofs\\SMALL\\IMG_0300.jpg",null,"Click for large version"]
[301,null,null,"","","",null,"F:\\misc\\rbwebsite\\pics\\wedding_proofs\\SMALL\\IMG_0301.jpg",null,"Click for large version"]
[302,null,"x",1,"",1,null,"F:\\misc\\rbwebsite\\pics\\wedding_proofs\\SMALL\\IMG_0302.jpg",null,"Click for large version"]
[303,null,"x",1,"",1,null,"F:\\misc\\rbwebsite\\pics\\wedding_proofs\\SMALL\\IMG_0303.jpg",null,"Click for large version"]
[304,null,null,"","","",null,"F:\\misc\\rbwebsite\\pics\\wedding_proofs\\SMALL\\IMG_0304.jpg",null,"Click for large version"]
[305,null,"x",1,"",1,null,"F:\\misc\\rbwebsite\\pics\\wedding_proofs\\SMALL\\IMG_0305.jpg",null,"Click for large version"]
[306,"orig_list_only","maybe buy extra",1,1,"",null,"F:\\misc\\rbwebsite\\pics\\wedding_proofs\\SMALL\\IMG_0306.jpg",null,"Click for large version"]
[307,null,"x",1,"",1,null,"F:\\misc\\rbwebsite\\pics\\wedding_proofs\\SMALL\\IMG_0307.jpg",null,"Click for large version"]
[308,null,null,"","","",null,"F:\\misc\\rbwebsite\\pics\\wedding_proofs\\SMALL\\IMG_0308.jpg",null,"Click for large version"]
[309,null,null,"","","",null,"F:\\misc\\rbwebsite\\pics\\wedding_proofs\\SMALL\\IMG_0309.jpg",null,"Click for large version"]
[310,null,null,"","","",null,"F:\\misc\\rbwebsite\\pics\\wedding_proofs\\SMALL\\IMG_0310.jpg",null,"Click for large version"]
[311,null,null,"","","","I had selected, then removed; 312 is better","F:\\misc\\rbwebsite\\pics\\wedding_proofs\\SMALL\\IMG_0311.jpg",null,"Click for large version"]
[312,null,"x",1,"",1,null,"F:\\misc\\rbwebsite\\pics\\wedding_proofs\\SMALL\\IMG_0312.jpg",null,"Click for large version"]
[313,null,null,"","","",null,"F:\\misc\\rbwebsite\\pics\\wedding_proofs\\SMALL\\IMG_0313.jpg",null,"Click for large version"]
[314,null,null,"","","",null,"F:\\misc\\rbwebsite\\pics\\wedding_proofs\\SMALL\\IMG_0314.jpg",null,"Click for large version"]
[315,null,"x",1,"",1,null,"F:\\misc\\rbwebsite\\pics\\wedding_proofs\\SMALL\\IMG_0315.jpg",null,"Click for large version"]
[316,null,"x",1,"",1,null,"F:\\misc\\rbwebsite\\pics\\wedding_proofs\\SMALL\\IMG_0316.jpg",null,"Click for large version"]
[317,null,null,"","","",null,"F:\\misc\\rbwebsite\\pics\\wedding_proofs\\SMALL\\IMG_0317.jpg",null,"Click for large version"]
[318,"x","x",1,1,"","zoom in a bit; girls","F:\\misc\\rbwebsite\\pics\\wedding_proofs\\SMALL\\IMG_0318.jpg",null,"Click for large version"]
[319,null,null,"","","",null,"F:\\misc\\rbwebsite\\pics\\wedding_proofs\\SMALL\\IMG_0319.jpg",null,"Click for large version"]
[320,null,null,"","","",null,"F:\\misc\\rbwebsite\\pics\\wedding_proofs\\SMALL\\IMG_0320.jpg",null,"Click for large version"]
[321,null,null,"","","",null,"F:\\misc\\rbwebsite\\pics\\wedding_proofs\\SMALL\\IMG_0321.jpg",null,"Click for large version"]
[322,"x","x",1,1,"",null,"F:\\misc\\rbwebsite\\pics\\wedding_proofs\\SMALL\\IMG_0322.jpg",null,"Click for large version"]
[323,null,"x",1,"",1,null,"F:\\misc\\rbwebsite\\pics\\wedding_proofs\\SMALL\\IMG_0323.jpg",null,"Click for large version"]
[324,null,null,"","","",null,"F:\\misc\\rbwebsite\\pics\\wedding_proofs\\SMALL\\IMG_0324.jpg",null,"Click for large version"]
[325,null,null,"","","",null,"F:\\misc\\rbwebsite\\pics\\wedding_proofs\\SMALL\\IMG_0325.jpg",null,"Click for large version"]
[326,null,null,"","","",null,"F:\\misc\\rbwebsite\\pics\\wedding_proofs\\SMALL\\IMG_0326.jpg",null,"Click for large version"]
[327,"x","potentially big choice",1,1,"","us inside glass","F:\\misc\\rbwebsite\\pics\\wedding_proofs\\SMALL\\IMG_0327.jpg",null,"Click for large version"]
[]
[]
[null,"sunset champagne glass"]
[null,"4 of us sunset"]
[null,"cake pieces in hand"]